Cogmind - Beta 15 @@@ ROGUE MODE // 2025.05.17 @ 00:47:19 Player: jumpy Result: Self-destructed Performance ------------- Evolutions (1) 500 Regions Visited (3) 600 Robots Destroyed (22) 110 Value Destroyed (362) 362 Prototype IDs (0) 0 Alien Tech Used (0) 0 Bonus (0) 0 TOTAL SCORE: 1572 Bonus ------- None Cogmind --------- Core Integrity 386/400 Matter 264/300 Energy 250/250 System Corruption 0% Temperature Cool (0) Movement Treading (160) Location -9/Storage Parts ------- > --- POWER (1) -------- Ion Engine > --- PROPULSION (2) --- Light Treads Light Treads > --- UTILITY (4) ------ Large Storage Unit Improved Terrain Scanner Seismic Detector Hardened Light Armor Plating > --- WEAPON (2) ------- Assault Rifle Heavy Assault Rifle > --- INVENTORY (15) --- Light Ion Engine Wheel Wheel Seismic Detector Seismic Detector Targeting Computer Targeting Computer ECM Suite Small Laser Peak State ------------ > --- POWER ------------ Ion Engine > --- PROPULSION ------- Light Treads Light Treads > --- UTILITY ---------- Large Storage Unit Improved Terrain Scanner Seismic Detector Hardened Light Armor Plating > --- WEAPON ----------- Assault Rifle Heavy Assault Rifle > --- INVENTORY -------- Light Ion Engine Wheel Wheel Seismic Detector Targeting Computer Targeting Computer ECM Suite Small Laser Assault Rifle [Rating: 13] Favorites ----------- Power Ion Engine Engine Ion Engine Propulsion Light Treads Treads Light Treads Utility Seismic Detector Device Seismic Detector Storage Large Storage Unit Protection Hardened Light Armor Plating Weapon Assault Rifle Ballistic Gun Assault Rifle Build | -11 -10 -9 -9 ------- Run | Yrd Mat Mat Sto Slots Evolved 2 | . . 2 . Power . | . . . . Propulsion . | . . . . Utility 2 | . . 2 . Weapon . | . . . . Parts Attached 14 | 8 2 4 . Power 1 | 1 . . . Engine 1 | 1 . . . Core . | . . . . Reactor . | . . . . Propulsion 2 | 2 . . . Treads 2 | 2 . . . Leg . | . . . . Wheel . | . . . . Hover . | . . . . Flight . | . . . . Utility 8 | 3 2 3 . Device 5 | 2 1 2 . Storage 2 | 1 1 . . Processor . | . . . . Hackware . | . . . . Protection 1 | . . 1 . Artifact . | . . . . Weapon 3 | 2 . 1 . Energy Gun . | . . . . Energy Cannon . | . . . . Ballistic Gun 3 | 2 . 1 . Ballistic Cannon . | . . . . Launcher . | . . . . Special Weapon . | . . . . Impact Weapon . | . . . . Slashing Weapon . | . . . . Piercing Weapon . | . . . . Special Melee Weapon . | . . . . Unidentified Prototypes . | . . . . Parts Lost . | . . . . Power . | . . . . Propulsion . | . . . . Utility . | . . . . Weapon . | . . . . Highest Loss Streak . | . . . . To Critical Strikes . | . . . . Average Backups 6 | 4 6 8 . Power . | . 1 1 . Propulsion 1 | 1 2 2 . Utility 2 | . 2 4 . Weapon . | . 1 1 . Tool/Special . | . . . . Unused Backups 7 | . . . 7 Power 1 | . . . 1 Propulsion 2 | . . . 2 Utility 3 | . . . 3 Weapon 1 | . . . 1 Tool/Special . | . . . . Average Slot Usage (%) 98 | . 100 95 . Engine 12 | . 14 11 . Treads 25 | . 28 22 . Device 16 | . 14 19 . Storage 12 | . 14 11 . Protection 3 | . . 8 . Ballistic Gun 25 | . 28 22 . Peak Build Rating 13 | 7 8 13 . Average Rating 8 | 6 7 11 . On Entrance 7 | . 7 8 13 Naked Turns . | . . . . Heaviest Build 37 | 15 30 37 . Greatest Support 40 | 40 40 40 . Greatest Overweight (x) . | . . . . Average Overweight (x) . | . . . . Largest Inventory Capacity 15 | 8 15 15 . Average Capacity 12 | 7 13 15 . Most Carried 9 | 6 9 9 . Average Carried 6 | 4 6 8 . Final Capacity 15 | 8 15 15 15 Final Carried 9 | 6 9 9 9 Class Distribution -------------------- 100% | Mutant Dominant Class ---------------- Mutant | -10/Materials Mutant | -9/Materials Mutant | -9/Storage Resources | -11 -10 -9 -9 ----------- Run | Yrd Mat Mat Sto Matter Collected 644 | 382 162 100 . Remotely 153 | 153 . . . Salvage Created 669 | 212 342 115 . Parts 46 | 19 17 10 . Haulers Intercepted 1 | . 1 . . Recyclers Shooed . | . . . . Parts Field Recycled . | . . . . Retrieved Matter . | . . . . Parts Self-Destructed . | . . . . Prevented . | . . . . Kills | -11 -10 -9 -9 ------- Run | Yrd Mat Mat Sto Combat Hostiles Destroyed 13 | . 8 5 . Guns 13 | . 8 5 . Classes Destroyed 7 | 3 3 1 . Worker 1 | 1 . . . Tunneler 6 | 6 . . . Hauler 1 | . 1 . . Recycler 1 | 1 . . . Swarmer 7 | . 3 4 . Grunt 5 | . 5 . . Sentry 1 | . . 1 . Best Kill Streak 5 | 3 3 5 . Combat Bots Only 5 | . 3 5 . Max Kills in Single Turn 1 | 1 1 1 . Gunslinging . | . . . . Exploded . | . . . . Melee . | . . . . Uniques/NPCs Destroyed . | . . . . Combat | -11 -10 -9 -9 -------- Run | Yrd Mat Mat Sto Hostile Shots Fired 71 | . 34 37 . Missed 16 | . 8 8 . Hits 55 | . 26 29 . Projectile 55 | . 26 29 . Critical Strikes 3 | . 2 1 . Damage Taken 580 | . 296 284 . Core 51 | . 37 14 . Absorbed by Shields . | . . . . Core Remaining (%) 92 | 100 85 . . Volleys Fired 57 | 17 24 16 . Largest 2 | 2 2 2 . Hottest 40 | 40 40 40 . Shots Fired 114 | 34 48 32 . Gun 114 | 34 48 32 . Cannon . | . . . . Launcher . | . . . . Special . | . . . . Kinetic 114 | 34 48 32 . Thermal . | . . . . Explosive . | . . . . Electromagnetic . | . . . . Robot Hit Streak 22 | 8 22 6 . Robot Miss Streak 2 | 2 2 2 . Penetration Max . | . . . . Secondary Targets 1 | . 1 . . Max Gunslinging Chain 1 | . 1 . . Shots Hit Robots 78 | 22 34 22 . Core Hits 34 | 9 19 6 . Critical Kills 1 | . . 1 . Critical Parts Destroyed . | . . . . Critical Strikes 1 | . . 1 . Destroy 1 | . . 1 . Melee Attacks . | . . . . Impact . | . . . . Slashing . | . . . . Piercing . | . . . . Sneak Attacks . | . . . . Combat Hostiles . | . . . . Follow-up Attacks . | . . . . Damage Inflicted 1016 | 280 447 289 . Guns 1001 | 280 432 289 . Cannons . | . . . . Explosions . | . . . . Melee . | . . . . Ramming 15 | . 15 . . Kinetic 1001 | 280 432 289 . Thermal . | . . . . Explosive . | . . . . Electromagnetic . | . . . . Impact . | . . . . Slashing . | . . . . Piercing . | . . . . Highest Corruption . | . . . . Average Corruption . | . . . . Corruption Purged . | . . . . Corruption Blocked . | . . . . Overload Shots . | . . . . Overflow Damage . | . . . . Projectiles . | . . . . Explosions . | . . . . Melee . | . . . . Knockbacks . | . . . . Impact . | . . . . Kinetic . | . . . . Secondary . | . . . . Self-Inflicted Damage . | . . . . Shots . | . . . . Rammed 4 | 1 3 . . Targets Rammed 4 | 1 3 . . Kicked . | . . . . Crushed . | . . . . Highest Temperature 22 | . 20 22 . Average Temperature 9 | . 10 8 . Received Heat Transfer 246 | . 183 63 . Siege Activations . | . . . . Martial Activations . | . . . . Shielding Activations . | . . . . Robots Disrupted . | . . . . Combat Hostiles . | . . . . Robots Corrupted . | . . . . Combat Hostiles . | . . . . Parts Fried . | . . . . Impact Corruptions . | . . . . Robots Melted . | . . . . Combat Hostiles . | . . . . Parts Melted . | . . . . Heat Transferred . | . . . . Parts Sabotaged . | . . . . Parts Stolen . | . . . . Parts Stripped . | . . . . Power Chain Reactions . | . . . . Alert | -11 -10 -9 -9 ------- Run | Yrd Mat Mat Sto Maximum Alert Level . | . . . . Low Security (%) 100 | 100 100 100 . Level 1 . | . . . . Level 2 . | . . . . Level 3 . | . . . . Level 4 . | . . . . Level 5 . | . . . . High Security . | . . . . Max Security . | . . . . Peak Influence 131 | 15 118 131 . Initial 25 | . . 4 25 Average 41 | 1 54 66 . Influence Increases 389 | 40 198 151 . Destroy 0b10 Robot/C 260 | . 160 100 . Destroy 0b10 Robot/NC 45 | 40 5 . . Destroy Leader 52 | . 32 20 . Destroy Structure 2 | . 1 1 . Lose Combat Pursuer 30 | . . 30 . Influence Decreases 364 | 40 186 102 36 Entered New Map 44 | . . 8 36 Time Decay 320 | 40 186 94 . Squads Dispatched . | . . . . Investigation . | . . . . Extermination . | . . . . Reinforcement . | . . . . Assault . | . . . . Garrison . | . . . . Intercept . | . . . . Searches Triggered . | . . . . Construction Impeded . | . . . . Haulers Reinforced . | . . . . Active Scanning Responses . | . . . . Cargo Convoy Interrupts . | . . . . Stealth | -11 -10 -9 -9 --------- Run | Yrd Mat Mat Sto Distress Signals 3 | . 3 . . Communications Jammed . | . . . . Distress Signals . | . . . . Times Spotted 20 | . 13 7 . Peak Tracking Total 5 | . 4 5 . Tactical Retreats 1 | . . 1 . Traps | -11 -10 -9 -9 ------- Run | Yrd Mat Mat Sto Traps Triggered . | . . . . Indirectly . | . . . . Trap Hack Attempts . | . . . . Triggered . | . . . . Disarmed . | . . . . Reprogrammed . | . . . . Reused . | . . . . Traps Extracted . | . . . . Installed . | . . . . Triggered . | . . . . Machines | -11 -10 -9 -9 ---------- Run | Yrd Mat Mat Sto Machines Disabled . | . . . . Max in Single Turn . | . . . . Machines Repaired . | . . . . Machines Dismantled . | . . . . Machines Sabotaged . | . . . . Overloaded Fab Kills . | . . . . Hacking | -11 -10 -9 -9 --------- Run | Yrd Mat Mat Sto Machines Accessed . | . . . . Terminals . | . . . . Fabricators . | . . . . Repair Stations . | . . . . Recycling Units . | . . . . Scanalyzers . | . . . . Garrison Access . | . . . . Total Hacks . | . . . . Successful . | . . . . Failed . | . . . . Catastrophic . | . . . . Database Lockouts . | . . . . Manual . | . . . . Terminals . | . . . . Fabricators . | . . . . Repair Stations . | . . . . Recycling Units . | . . . . Scanalyzers . | . . . . Garrison Access . | . . . . Terminal Hacks . | . . . . Fabricator Hacks . | . . . . Repair Station Hacks . | . . . . Recycling Unit Hacks . | . . . . Scanalyzer . | . . . . Garrison Access Hacks . | . . . . Unauthorized Hacks . | . . . . Terminals . | . . . . Fabricators . | . . . . Repair Stations . | . . . . Recycling Units . | . . . . Scanalyzers . | . . . . Garrison Access . | . . . . Data Cores Recovered . | . . . . Used . | . . . . Hacking Detections . | . . . . Full Trace Events . | . . . . Feedback Events . | . . . . Feedback Blocked . | . . . . Robot Schematics Acquired . | . . . . Robots Built . | . . . . Authchips . | . . . . Time . | . . . . Total Robot Build Rating . | . . . . Part Schematics Acquired . | . . . . Parts Built . | . . . . Authchips . | . . . . Time . | . . . . Total Part Build Rating . | . . . . Parts Repaired . | . . . . Time . | . . . . Parts Recycled . | . . . . Recycled Matter . | . . . . Retrieved Matter . | . . . . Retrieved Components . | . . . . Parts Scanalyzed . | . . . . Part Schematics Acquired . | . . . . Parts Damaged . | . . . . Bothacking | -11 -10 -9 -9 ------------ Run | Yrd Mat Mat Sto Used RIF Installer . | . . . . Robots Hacked . | . . . . Non-combat . | . . . . Combat . | . . . . Robot Hacks Applied . | . . . . Relay Couplers Released . | . . . . Fabnet Peak Effective % . | . . . . Robots Rewired . | . . . . Allies Hacked . | . . . . Hacks Repelled . | . . . . Allies | -11 -10 -9 -9 -------- Run | Yrd Mat Mat Sto Total Allies . | . . . . Largest Group . | . . . . Highest-Rated Group . | . . . . Highest-Rated Ally . | . . . . Total Orders . | . . . . Ally Attacks . | . . . . Total Damage . | . . . . Kills . | . . . . Allies Corrupted . | . . . . Allies Melted . | . . . . Intel | -11 -10 -9 -9 ------- Run | Yrd Mat Mat Sto Active Infowar (turns) 872 | 186 430 256 . Terrain 212 | . . 212 . Seismic 872 | 186 430 256 . Robot Analysis Total . | . . . . Derelict Logs Recovered . | . . . . Drone Launches . | . . . . Drone Recoveries . | . . . . Exploration | -11 -10 -9 -9 ------------- Run | Yrd Mat Mat Sto Turns Passed 989 | 303 430 256 . Spaces Moved 487 | 150 210 127 . Core 6 | 6 . . . Treads 481 | 144 210 127 . Legs . | . . . . Wheels . | . . . . Hover . | . . . . Flight . | . . . . Fastest Speed 50 | 50 160 160 . Average Speed 158 | 155 160 160 . Slowest Speed 160 | 160 160 160 . Overloaded Moves . | . . . . Propulsion Burnouts . | . . . . Robots Hopped . | . . . . Potential Cave-ins . | . . . . Cave-ins Triggered . | . . . . Exploration Rate (%) 13 | 7 31 15 2 Regions Visited 3 Branch Regions 1 Pre-discovered Areas . | . . . . Known Exits Taken . | . . . . Unknown Exits Taken 3 | 1 1 1 . Scrap Searched . | . . . . Spaces Dug . | . . . . Terrain Destroyed . | . . . . Melee . | . . . . Projectile . | . . . . AOE . | . . . . Terrain Rammed . | . . . . Walls Destroyed . | . . . . Machines Disabled . | . . . . Actions | -11 -10 -9 -9 --------- Run | Yrd Mat Mat Sto Total 583 | 182 254 147 . Wait 10 | . 10 . . Move 484 | 149 209 126 . Hop . | . . . . Pick Up 10 | 6 4 . . Fast Attach 9 | 8 . 1 . Attach 1 | . . 1 . Detach . | . . . . Swap 4 | . 2 2 . Drop 4 | 1 2 1 . Fire 57 | 17 24 16 . Melee . | . . . . Ram . | . . . . Kick . | . . . . Crush 4 | 1 3 . . Escape Stasis . | . . . . Rewire . | . . . . Trap . | . . . . Miscellaneous . | . . . . Route ------- -11/Scrapyard -10/Materials -9/Materials -9/Storage History --------- Turn | Location | Event 3 | -11/Scrapyard | Discovered new exit (range 15) 304 | -11/Scrapyard | Entered Materials 305 | -10/Materials | Build established: Mutant 537 | -10/Materials | Discovered new exit (range 12) 734 | -10/Materials | Entered another Materials area 734 | -9/Materials | Evolved 2 slots: Utility x2 788 | -9/Materials | Discovered new exit (range 10) 990 | -9/Materials | Entered Storage 990 | -9/Storage | Self-destructed Last Messages --------------- 00725_ Acquired ECM Suite. PARAMETERS=UTILITY+2 LOCATION=UNKNOWN GOAL=ESCAPE 00776_ Acquired Hrd. Light Armor Plating. 00788_ EXIT=FOUND 00792_ Critical hit (Burn: +37). 00802_ Destroyed Flight Unit. 00811_ S-10 Pest destroyed. 00817_ S-10 Pest suffers critical hit (Destroy). 00817_ S-10 Pest destroyed. 00841_ Y-45 Defender destroyed. 00841_ U-05 Engineer builds a Door. 00850_ Acquired 10 matter. 00855_ K-01 Serf collects debris. 00855_ Dropped Assault Rifle. 00856_ Acquired 90 matter. 00857_ K-01 Serf collects debris. LOCATION=UNKNOWN GOAL=ESCAPE Map ----- +----------------------------------------------------+ | ??????????????????????????????????? | | ??????????????????????????????????? | | ??????????????????????????????????? | | ??????????????????????????????????? | | ??????????????????????????????????? | | ??????????????????????????????????? | | ??????????????????????????????????? | | ??????????????????????????????????? | | ??????????????????????????????????? | | ??????????????????????????????????? | | ????????? ??????????????????????? | | ????????? ??????????????????????? | | ????????? ??????????????????????? | | ????????# #?????????????????????? | | ????????# #?????????????????????? | | ????????# #?????????????????????? | | ????????# #?????????????????????? | | ????????# #?????????????????????? | | ????????# #?????????????????????? | | ????????# #?????????????????????? | | ????????# #?????????????????????? | | ????????+ +?????????????????????? | | ????????# #?????????????????????? | | ????????# #?????????????????????? | | ????????# #?????????????????????? | | ????????# @ #?????????????????????? | | ????????# #?????????????????????? | | ????????#####?????????????????????? | | ??????????????????????????????????? | | ??????????????????????????????????? | | ??????????????????????????????????? | | ??????????????????????????????????? | | ??????????????????????????????????? | | ??????????????????????????????????? | | ??????????????????????????????????? | | ??????????????????????????????????? | | ??????????????????????????????????? | | ??????????????????????????????????? | | ??????????????????????????????????? | | ??????????????????????????????????? | | | | | | | | | | | | | | | | | | | | | +----------------------------------------------------+ Best States ------------- Heat Dissipation 28 Energy Generation 10 Energy Capacity 250 Matter Stores 300 Matter Capacity 300 Sight Range 16 Terrain Scan Range 16 Terrain Scan Density 10 Armor Coverage 150 Evasion (%) 40 Recoil Reduction 2 Item Schematics ----------------- None Robot Schematics ------------------ None Fabricated ------------ Nothing Repaired ---------- Nothing Alien Tech Used ----------------- None Achievements -------------- None Challenges ------------ None Game ------ Seed FissionScatterPerforator Manual? 0 Play Time 00:04:27 Cumulative 100.3 hours Start 2025.05.17 @ 00:41:31 End 2025.05.17 @ 00:47:19 Sessions 1 Manual Loads 0 Difficulty Rogue Special Mode None Game No. 259 Rogue 259 Adventurer 0 Explorer 0 Win Type - Total 2 Types 2/0/0/0/0/0/0/0/0/0 Lore% 48 Gallery% 49 Achievement% 41 Wizard Run 0 Options --------- Layout 0 ASCII 0 Keyboard 0 Movement Numpad Keybinds 0 Fullscreen 2 Font 18/Terminus Map View 76x50 Zoom Use 0% Tactical HUD 1 Map Filters NONE Filters NONE Steam 1 RUN: 87ddff27-cd6c-47a5-81bb-e954719291cf